Cogmind - Beta 12 @@@ ROGUE MODE // 2023.03.25 @ 16:31:07 Player: Plexion Result: Destroyed by D-53 Grenadier with Mini Grenade Launcher Performance ------------- Evolutions (0) 0 Regions Visited (2) 400 Robots Destroyed (13) 65 Value Destroyed (327) 327 Prototype IDs (0) 0 Alien Tech Used (0) 0 Bonus (0) 0 TOTAL SCORE: 792 Bonus ------- None Cogmind --------- Core Integrity 0/250 Matter 295/300 Energy 100/100 System Corruption 9% Temperature Cool (25) Movement Core (400) Ox7 Location -10/Mines Parts ------- > --- POWER (1) -------- (None) > --- PROPULSION (2) --- Compact Wheel > --- UTILITY (2) ------ Large Storage Unit > --- WEAPON (2) ------- EM Pulse Gun > --- INVENTORY (15) --- Light Ion Engine Hacking Suite Peak State ------------ > --- POWER ------------ Ion Engine > --- PROPULSION ------- Light Treads Light Treads > --- UTILITY ---------- Small Storage Unit Large Storage Unit > --- WEAPON ----------- EM Pulse Gun Assault Rifle > --- INVENTORY -------- Light Ion Engine EM Pulse Gun [Rating: 7] Favorites ----------- Power Ion Engine Engine Ion Engine Propulsion Light Treads Treads Light Treads Wheel Compact Wheel Utility Large Storage Unit Storage Large Storage Unit Weapon EM Pulse Gun Energy Gun EM Pulse Gun Ballistic Gun Assault Rifle Build | -11 -10 -10 ------- Run | Jun Mat Min Slots Evolved . | . . . Power . | . . . Propulsion . | . . . Utility . | . . . Weapon . | . . . Parts Attached 11 | 7 2 2 Power 2 | 2 . . Engine 2 | 2 . . Core . | . . . Reactor . | . . . Propulsion 3 | 2 . 1 Treads 2 | 2 . . Leg . | . . . Wheel 1 | . . 1 Hover . | . . . Flight . | . . . Utility 2 | 1 1 . Device . | . . . Storage 2 | 1 1 . Processor . | . . . Hackware . | . . . Protection . | . . . Artifact . | . . . Weapon 4 | 2 1 1 Energy Gun 3 | 1 1 1 Energy Cannon . | . . . Ballistic Gun 1 | 1 . . Ballistic Cannon . | . . . Launcher . | . . . Special Weapon . | . . . Impact Weapon . | . . . Slashing Weapon . | . . . Piercing Weapon . | . . . Special Melee Weapon . | . . . Unidentified Prototypes . | . . . Parts Lost 6 | . 1 5 Power 1 | . . 1 Propulsion 2 | . . 2 Utility . | . . . Weapon 3 | . 1 2 Highest Loss Streak 4 | . 1 4 To Critical Strikes . | . . . Average Slot Usage (%) 84 | . 85 83 Engine 14 | . 14 14 Treads 26 | . 28 19 Wheel 1 | . . 7 Storage 14 | . 14 14 Energy Gun 23 | . 23 28 Ballistic Gun 4 | . 5 . Naked Turns . | . . . Heaviest Build 29 | 14 29 29 Greatest Support 40 | 40 40 40 Greatest Overweight (x) 1 | . . 1 Average Overweight (x) . | . . . Largest Inventory Capacity 15 | 8 15 15 Average Capacity 13 | 7 14 15 Most Carried 3 | 2 3 3 Average Carried 1 | . 1 2 Final Capacity 15 | 8 15 15 Final Carried 3 | 2 3 2 Class Distribution -------------------- 100% | Mutant Dominant Class ---------------- Mutant | -10/Materials Mutant | -10/Mines Resources | -11 -10 -10 ----------- Run | Jun Mat Min Matter Collected 332 | 225 97 10 Remotely . | . . . Salvage Created 498 | . 402 96 Parts 31 | . 28 3 Haulers Intercepted . | . . . Recyclers Shooed . | . . . Parts Field Recycled . | . . . Retrieved Matter . | . . . Parts Self-Destructed . | . . . Prevented . | . . . Kills | -11 -10 -10 ------- Run | Jun Mat Min Combat Hostiles Destroyed 10 | . 10 . Guns 5 | . 5 . AOE 5 | . 5 . Classes Destroyed 5 | . 4 1 Worker 1 | . 1 . Recycler 1 | . . 1 Operator 1 | . 1 . Swarmer 3 | . 3 . Grunt 7 | . 7 . Best Kill Streak 5 | . 5 1 Combat Bots Only 5 | . 5 . Max Kills in Single Turn 2 | . 2 1 Gunslinging . | . . . Exploded 2 | . 2 . Melee . | . . . Uniques/NPCs Destroyed . | . . . Combat | -11 -10 -10 -------- Run | Jun Mat Min Damage Taken 870 | . 486 384 Core 264 | . 115 149 Absorbed by Shields . | . . . Core Remaining (%) 100 | 100 . . Volleys Fired 30 | . 26 4 Largest 2 | . 2 2 Hottest 80 | . 80 80 Shots Fired 61 | . 53 8 Gun 61 | . 53 8 Cannon . | . . . Launcher . | . . . Special . | . . . Kinetic 14 | . 14 . Thermal . | . . . Explosive . | . . . Electromagnetic 47 | . 39 8 Robot Hit Streak 13 | . 13 4 Robot Miss Streak 3 | . 3 1 Penetration Max . | . . . Secondary Targets 1 | . 1 . Max Gunslinging Chain 1 | . 1 . Shots Hit Robots 44 | . 38 6 Core Hits 20 | . 19 1 Critical Kills . | . . . Critical Parts Destroyed . | . . . Critical Strikes . | . . . Melee Attacks . | . . . Impact . | . . . Slashing . | . . . Piercing . | . . . Sneak Attacks . | . . . Combat Hostiles . | . . . Follow-up Attacks . | . . . Damage Inflicted 824 | . 718 106 Guns 559 | . 500 59 Cannons . | . . . Explosions 264 | . 217 47 Melee . | . . . Ramming 1 | . 1 . Kinetic 113 | . 113 . Thermal 261 | . 214 47 Explosive . | . . . Electromagnetic 449 | . 390 59 Impact . | . . . Slashing . | . . . Piercing . | . . . Highest Corruption 9 | . 2 9 Average Corruption 1 | . 1 2 Corruption Purged . | . . . Corruption Blocked . | . . . Effects 3 | . 1 2 Matter Fused 2 | . . 2 Misfires 1 | . 1 . Overload Shots . | . . . Overflow Damage 32 | . 28 4 Projectiles . | . . . Explosions 32 | . 28 4 Melee . | . . . Knockbacks . | . . . Impact . | . . . Kinetic . | . . . Secondary . | . . . Self-Inflicted Damage 189 | . 157 32 Shots 5 | . 4 1 Rammed 1 | . 1 . Targets Rammed 1 | . 1 . Kicked . | . . . Crushed . | . . . Highest Temperature 90 | . 90 30 Average Temperature 28 | . 30 17 Received Heat Transfer 168 | . 168 . Siege Activations . | . . . Robots Corrupted . | . . . Combat Hostiles . | . . . Parts Fried . | . . . Impact Corruptions . | . . . Robots Melted . | . . . Combat Hostiles . | . . . Parts Melted . | . . . Heat Transferred 200 | . 150 50 Parts Sabotaged . | . . . Parts Stolen . | . . . Parts Stripped . | . . . Power Chain Reactions 6 | . 5 1 Missiles Intercepted . | . . . Alert | -11 -10 -10 ------- Run | Jun Mat Min Peak Influence 264 | . 264 99 Initial 98 | . . 98 Average 147 | . 174 97 Maximum Alert Level 1 | . 1 . Low Security (%) 67 | 100 57 100 Level 1 32 | . 42 . Level 2 . | . . . Level 3 . | . . . Level 4 . | . . . Level 5 . | . . . High Security . | . . . Max Security . | . . . Squads Dispatched 2 | . 2 . Investigation . | . . . Extermination . | . . . Reinforcement 2 | . 2 . Assault . | . . . Garrison . | . . . Intercept . | . . . Searches Triggered . | . . . Construction Impeded . | . . . Haulers Reinforced . | . . . Active Scanning Responses . | . . . Cargo Convoy Interrupts . | . . . Stealth | -11 -10 -10 --------- Run | Jun Mat Min Distress Signals 1 | . 1 . Communications Jammed . | . . . Distress Signals . | . . . Times Spotted 34 | . 21 13 Peak Tracking Total 11 | . 5 11 Tactical Retreats 3 | . 2 1 Traps | -11 -10 -10 ------- Run | Jun Mat Min Traps Triggered 1 | . 1 . Indirectly . | . . . Trap Hack Attempts . | . . . Triggered . | . . . Disarmed . | . . . Reprogrammed . | . . . Reused . | . . . Traps Extracted . | . . . Installed . | . . . Triggered . | . . . Machines | -11 -10 -10 ---------- Run | Jun Mat Min Machines Disabled 1 | . 1 . Max in Single Turn 1 | . 1 . Machines Repaired . | . . . Machines Sabotaged . | . . . Overloaded Fab Kills . | . . . Hacking | -11 -10 -10 --------- Run | Jun Mat Min Machines Accessed 4 | . 4 . Terminals 4 | . 4 . Fabricators . | . . . Repair Stations . | . . . Recycling Units . | . . . Scanalyzers . | . . . Garrison Access . | . . . Total Hacks 10 | . 10 . Successful 2 | . 2 . Failed 7 | . 7 . Catastrophic . | . . . Database Lockouts 1 | . 1 . Manual 12 | . 12 . Terminals 10 | . 10 . Fabricators . | . . . Repair Stations . | . . . Recycling Units . | . . . Scanalyzers . | . . . Garrison Access . | . . . Terminal Hacks 2 | . 2 . Robot Analysis 2 | . 2 . Fabricator Hacks . | . . . Repair Station Hacks . | . . . Recycling Unit Hacks . | . . . Scanalyzer . | . . . Garrison Access Hacks . | . . . Unauthorized Hacks . | . . . Terminals . | . . . Fabricators . | . . . Repair Stations . | . . . Recycling Units . | . . . Scanalyzers . | . . . Garrison Access . | . . . Data Cores Recovered . | . . . Used . | . . . Hacking Detections 4 | . 4 . Full Trace Events . | . . . Feedback Events . | . . . Feedback Blocked . | . . . Robot Schematics Acquired . | . . . Robots Built . | . . . Authchips . | . . . Time . | . . . Total Robot Build Rating . | . . . Part Schematics Acquired . | . . . Parts Built . | . . . Authchips . | . . . Time . | . . . Total Part Build Rating . | . . . Parts Repaired . | . . . Time . | . . . Parts Recycled . | . . . Recycled Matter . | . . . Retrieved Matter . | . . . Retrieved Components . | . . . Parts Scanalyzed . | . . . Part Schematics Acquired . | . . . Parts Damaged . | . . . Bothacking | -11 -10 -10 ------------ Run | Jun Mat Min Used RIF Installer . | . . . Robots Hacked . | . . . Non-combat . | . . . Combat . | . . . Robot Hacks Applied . | . . . Relay Couplers Released . | . . . Fabnet Peak Effective % . | . . . Robots Rewired . | . . . Allies Hacked . | . . . Hacks Repelled . | . . . Allies | -11 -10 -10 -------- Run | Jun Mat Min Total Allies . | . . . Largest Group . | . . . Highest-Rated Group . | . . . Highest-Rated Ally . | . . . Total Orders . | . . . Ally Attacks . | . . . Total Damage . | . . . Kills . | . . . Allies Corrupted . | . . . Allies Melted . | . . . Intel | -11 -10 -10 ------- Run | Jun Mat Min Robot Analysis Total 2 | . 2 . Derelict Logs Recovered . | . . . Drone Launches . | . . . Drone Recoveries . | . . . Exploration | -11 -10 -10 ------------- Run | Jun Mat Min Turns Passed 906 | 82 697 127 Spaces Moved 480 | 46 351 83 Core 2 | 2 . . Treads 431 | 44 351 36 Legs . | . . . Wheels 47 | . . 47 Hover . | . . . Flight . | . . . Fastest Speed 50 | 50 160 115 Average Speed 155 | 155 160 136 Slowest Speed 240 | 160 160 240 Overloaded Moves . | . . . Propulsion Burnouts . | . . . Robots Hopped . | . . . Cave-ins Triggered . | . . . Exploration Rate (%) 27 | 3 60 19 Regions Visited 2 Branch Regions 1 Pre-discovered Areas . | . . . Known Exits Taken . | . . . Unknown Exits Taken 2 | 1 1 . Scrap Searched . | . . . Spaces Dug . | . . . Terrain Destroyed 26 | . 20 6 Melee . | . . . Projectile . | . . . AOE 26 | . 20 6 Terrain Rammed . | . . . Walls Destroyed . | . . . Machines Disabled . | . . . Actions | -11 -10 -10 --------- Run | Jun Mat Min Total 576 | 53 434 89 Wait 51 | . 51 . Move 478 | 45 350 83 Hop . | . . . Pick Up 3 | 1 2 . Fast Attach 8 | 6 1 1 Attach 2 | . 1 1 Detach 1 | . 1 . Swap 1 | 1 . . Drop 1 | . 1 . Fire 30 | . 26 4 Melee . | . . . Ram . | . . . Kick . | . . . Crush 1 | . 1 . Escape Stasis . | . . . Rewire . | . . . Trap . | . . . Miscellaneous . | . . . Route ------- -11/Junkyard -10/Materials (discovered 2 exits: [*Mat] / [*Min]) -10/Mines (discovered 1 exit: [*Mat]) History --------- Turn | Location | Event 20 | -11/Junkyard | Discovered new exit (range 16) 83 | -11/Junkyard | Entered Materials 206 | -10/Materials | Discovered new exit (range 16) 309 | -10/Materials | Build established: Mutant 541 | -10/Materials | Central database locked down 617 | -10/Materials | Discovered new exit (range 10) 780 | -10/Materials | Entered Mines 790 | -10/Mines | Discovered new exit (range 11) 872 | -10/Mines | Assembled infested the area 877 | -10/Mines | Assisted by a Guerilla fighting off Assembled 901 | -10/Mines | Core integrity fell below 50% 907 | -10/Mines | Destroyed by D-53 Grenadier with Mini Grenade Launcher Last Messages --------------- 00885_ HV Slug penetrates Wall. 00888_ Plasma Injector explodes. 00888_ as-70658 destroyed. 00888_ U2-S0E(h) destroyed. 00888_ as-24608 destroyed. 00888_ Plasma Injector explodes. 00888_ as-19636 destroyed. 00888_ Core Extractor disabled. 00888_ Laser Drill disabled. 00888_ as-62706 destroyed. 00900_ EM Pulse Gun destroyed. 00900_ System corrupted by crushing effect (+4). 00902_ Core Extractor disabled. 00903_ Lgt. Treads destroyed. 00903_ System corrupted by crushing effect (+3). 00904_ as-94715 destroyed. 00904_ as-27123 destroyed. 00906_ Ion Engine destroyed. 00907_ System corrupted: Matter fused (-8). 00907_ EM Pulse Gun destroyed. Map ----- +----------------------------------------------------+ | ????????????????????????? #??????????????????? | | ?????????????????????????? ###???????????????? | | ??????????????????????????# ###?????????????? | | ???????????????????????????# ##????????????? | | ????????????????????????????# #????????????? | | ?????????????????????????????# #????????????? | | ??????????????????????????????# #?????????????? | | ???????????????????????????????# #??????????????? | | ???????????????????############# ####???????????? | | ???????????????????# """#???????????? | | ??????????????????## ########### !%!#??????????? | | ????????????????## # ####?????###"" #??????????? | | ??????????????? ""; ;;;;#??????### "#????????? | | ???????????????#;= #?######## ##???####?? | | ??????????????##;% #?# ## ###### ### | | ??????#########;; "?# | | $ a%% dd ### ##### | | ??????#########; ;?# ####???## < | | ???????????????#;a #?# #???????## | | ???????????????## ### #???????## | | ???????????????#; #######???????# | | ????????????????# ##????????# | | ????????????????# #???????# ## | | ????????????????# """ #???????# ##?## | | ????????????????# """ #???????# ##???? | | ????????????????# a @ #????????### #?????? | | ????????????????##### #??????????###??????? | | ????????????????????# ##???????????????????? | | | | | | | | | | | | | | | | | | | | | | | | | | | | | | | | | | | | | | | | | | | | | +----------------------------------------------------+ Best States ------------- Heat Dissipation 25 Energy Generation 10 Energy Capacity 250 Matter Stores 300 Matter Capacity 300 Sight Range 16 Terrain Scan Density 10 Evasion (%) 40 Recoil Reduction 2 Item Schematics ----------------- None Robot Schematics ------------------ None Fabricated ------------ Nothing Alien Tech Used ----------------- None Achievements -------------- None Challenges ------------ None Game ------ Seed ReflectiveVortexScythe Manual? 0 Play Time 00:04:58 Cumulative 367.7 hours Start 2023.03.25 @ 16:26:55 End 2023.03.25 @ 16:31:07 Sessions 1 Manual Loads 0 Difficulty Rogue Special Mode None Game No. 457 Rogue 370 Adventurer 87 Explorer 0 Win Type - Total 17 Types 7/0/8/1/1/0/0/0/0 Lore% 86 Gallery% 90 Achievement% 73 Wizard Run 0 Options --------- ASCII 0 Keyboard 1 Movement Numpad Keybinds 0 Fullscreen 1 Font 18/SmallcapsGlow Map View 76x50 Tactical HUD 1 Map Filters NONE Filters NONE Steam 1 RUN: f9d15505-f64f-4e5f-924a-179f561d36d4